Cogmind - Beta 17 @@@ ROGUE MODE // 2026.06.25 @ 06:33:46 Player: nnnnsk Result: Self-destructed Performance ------------- Evolutions (2) 1000 Regions Visited (3) 600 Robots Destroyed (20) 100 Value Destroyed (561) 561 Prototype IDs (0) 0 Alien Tech Used (0) 0 Bonus (0) 0 TOTAL SCORE: 2261 Bonus ------- None Cogmind --------- Core Integrity 550/550 Matter 294/300 Energy 250/250 System Corruption 0% Temperature Cool (0) Movement Walking (190) Ox1 Location -8/Materials Parts ------- > --- POWER (1) -------- Ion Engine > --- PROPULSION (4) --- Aluminum Leg Aluminum Leg > --- UTILITY (4) ------ Heat Sink Large Storage Unit > --- WEAPON (2) ------- Subdweller Machine Gun Mini Grenade Launcher > --- INVENTORY (15) --- Subdweller Power Source Wheel Wheel Compact Wheel Small Storage Unit Medium Storage Unit Signal Interpreter Small Laser Light Assault Rifle Light Assault Rifle Mini Grenade Launcher Welding Torch Hammer Scrap Shield Fragment (46) Scrap Shield Fragment (32) Peak State ------------ > --- POWER ------------ Ion Engine > --- PROPULSION ------- Aluminum Leg Aluminum Leg > --- UTILITY ---------- Heat Sink Large Storage Unit > --- WEAPON ----------- Subdweller Machine Gun Mini Grenade Launcher > --- INVENTORY -------- Ion Engine Wheel Wheel Compact Wheel Small Storage Unit Medium Storage Unit Signal Interpreter Small Laser Light Assault Rifle Light Assault Rifle Mini Grenade Launcher Welding Torch Hammer Scrap Shield Fragment [Rating: 10] Favorites ----------- Power Ion Engine Engine Ion Engine Propulsion Light Treads Treads Light Treads Leg Aluminum Leg Utility Small Storage Unit Device Heat Sink Storage Small Storage Unit Weapon Light Assault Rifle Energy Gun Small Laser Ballistic Gun Light Assault Rifle Launcher Mini Grenade Launcher Build | -11 -10 -10 -8 ------- Run | Yrd Mat Sub Mat Slots Evolved 4 | . . . 4 Power . | . . . . Propulsion 2 | . . . 2 Utility 2 | . . . 2 Weapon . | . . . . Parts Attached 17 | 6 7 4 . Power 3 | 1 1 1 . Engine 3 | 1 1 1 . Core . | . . . . Reactor . | . . . . Propulsion 4 | 2 . 2 . Treads 2 | 2 . . . Leg 2 | . . 2 . Wheel . | . . . . Hover . | . . . . Flight . | . . . . Utility 5 | 1 4 . . Device 1 | . 1 . . Storage 4 | 1 3 . . Processor . | . . . . Hackware . | . . . . Protection . | . . . . Artifact . | . . . . Weapon 5 | 2 2 1 . Energy Gun 1 | 1 . . . Energy Cannon . | . . . . Ballistic Gun 3 | 1 1 1 . Ballistic Cannon . | . . . . Launcher 1 | . 1 . . Special Weapon . | . . . . Impact Weapon . | . . . . Slashing Weapon . | . . . . Piercing Weapon . | . . . . Special Melee Weapon . | . . . . Unidentified Prototypes . | . . . . Parts Lost 3 | . . 3 . Power 1 | . . 1 . Propulsion 2 | . . 2 . Utility . | . . . . Weapon . | . . . . Highest Loss Streak 3 | . . 3 . To Critical Strikes . | . . . . Average Backups 7 | 6 11 14 . Power 1 | . 1 1 . Propulsion 4 | 4 5 4 . Utility . | . 2 3 . Weapon 1 | . 2 4 . Tool/Special . | . . . . Unused Backups 7 | . . . 7 Power . | . . . . Propulsion 3 | . . . 3 Utility 1 | . . . 1 Weapon 2 | . . . 2 Tool/Special 1 | . . . 1 Average Slot Usage (%) 98 | . 99 96 . Engine 13 | . 14 12 . Treads 23 | . 28 14 . Leg 4 | . . 11 . Device 6 | . 2 14 . Storage 20 | . 24 14 . Energy Gun 2 | . 3 . . Ballistic Gun 20 | . 23 14 . Launcher 5 | . . 14 . Peak Build Rating 10 | 6 9 10 . Average Rating 6 | 5 7 8 . On Entrance 6 | . 6 9 10 Avg Prop Armor Cover (%) . | . . . . Naked Turns . | . . . . Heaviest Build 32 | 12 32 31 . Greatest Support 40 | 40 40 40 . Greatest Overweight (x) 7 | . . 7 . Average Overweight (x) . | . . . . Largest Inventory Capacity 15 | 8 15 15 . Average Capacity 9 | 7 14 15 . Most Carried 15 | 7 15 15 . Average Carried 8 | 6 11 14 . Final Capacity 15 | 8 15 15 15 Final Carried 15 | 7 15 15 15 Class Distribution -------------------- 100% | Mutant Dominant Class ---------------- Mutant | -10/Materials Mutant | -10/Subcaves Mutant | -8/Materials Resources | -11 -10 -10 -8 ----------- Run | Yrd Mat Sub Mat Matter Collected 579 | 227 237 115 . Remotely . | . . . . Salvage Created 570 | 44 439 87 . Parts 41 | 5 27 9 . Haulers Intercepted . | . . . . Recyclers Shooed . | . . . . Parts Field Recycled . | . . . . Retrieved Matter . | . . . . Parts Self-Destructed 10 | . . 10 . Prevented . | . . . . Parts Restored . | . . . . Kills | -11 -10 -10 -8 ------- Run | Yrd Mat Sub Mat Combat Hostiles Destroyed 16 | . 12 4 . Guns 12 | . 12 . . AOE 4 | . . 4 . Classes Destroyed 7 | 2 4 1 . Worker 1 | 1 . . . Builder 1 | . 1 . . Tunneler 1 | 1 . . . Operator 1 | . 1 . . Swarmer 3 | . 3 . . Grunt 9 | . 9 . . Subdweller 4 | . . 4 . Best Kill Streak 3 | 1 3 2 . Combat Bots Only 3 | . 3 2 . Max Kills in Single Turn 2 | 1 1 2 . Gunslinging . | . . . . Exploded 2 | . . 2 . Melee . | . . . . Uniques/NPCs Destroyed . | . . . . Combat | -11 -10 -10 -8 -------- Run | Yrd Mat Sub Mat Hostile Shots Fired 64 | . 55 9 . Missed 22 | . 19 3 . Hits 42 | . 36 6 . Projectile 42 | . 36 6 . Critical Strikes 1 | . 1 . . Part Disruptions 1 | . 1 . . Damage Taken 683 | . 565 118 . Core 131 | . 87 44 . Absorbed by Shields . | . . . . Core Remaining (%) 73 | 100 . 47 . Volleys Fired 66 | 9 52 5 . Largest 2 | 2 2 2 . Hottest 60 | 60 60 60 . Shots Fired 127 | 18 103 6 . Gun 121 | 18 102 1 . Cannon . | . . . . Launcher 6 | . 1 5 . Special . | . . . . Kinetic 111 | 9 101 1 . Thermal 10 | 9 1 . . Explosive 6 | . 1 5 . Electromagnetic . | . . . . Robot Hit Streak 14 | 4 14 1 . Robot Miss Streak 4 | 3 4 1 . Penetration Max . | . . . . Secondary Targets . | . . . . Shots Hit Robots 84 | 10 73 1 . Core Hits 46 | 4 35 7 . Critical Kills . | . . . . Critical Parts Destroyed . | . . . . Critical Strikes . | . . . . Melee Attacks . | . . . . Impact . | . . . . Slashing . | . . . . Piercing . | . . . . Sneak Attacks . | . . . . Combat Hostiles . | . . . . Follow-up Attacks . | . . . . Damage Inflicted 1053 | 98 609 346 . Guns 667 | 94 573 . . Cannons . | . . . . Explosions 382 | . 36 346 . Melee . | . . . . Ramming 4 | 4 . . . Kinetic 593 | 31 562 . . Thermal 74 | 63 11 . . Explosive 382 | . 36 346 . Electromagnetic . | . . . . Impact . | . . . . Slashing . | . . . . Piercing . | . . . . Highest Corruption 3 | . 3 3 . Average Corruption 3 | . 3 3 . Corruption Purged . | . . . . Corruption Blocked . | . . . . Effects 19 | . 15 4 . Message Errors 6 | . 5 1 . Matter Fused 8 | . 5 3 . Heat Flow Errors 1 | . 1 . . Parts Rejected 1 | . 1 . . Data Loss (minor) 3 | . 3 . . Overload Shots . | . . . . Overflow Damage . | . . . . Projectiles . | . . . . Explosions . | . . . . Melee . | . . . . Knockbacks . | . . . . Impact . | . . . . Kinetic . | . . . . Secondary . | . . . . Self-Inflicted Damage 49 | . 49 . . Shots 1 | . 1 . . Rammed 1 | 1 . . . Targets Rammed 1 | 1 . . . Kicked . | . . . . Crushed . | . . . . Highest Temperature 138 | 40 138 . . Average Temperature 20 | 18 21 . . Received Heat Transfer 279 | . 249 30 . Siege Activations . | . . . . Martial Activations . | . . . . Shielding Activations . | . . . . Robots Disrupted . | . . . . Combat Hostiles . | . . . . Robots Corrupted . | . . . . Combat Hostiles . | . . . . Parts Fried . | . . . . Impact Corruptions . | . . . . Robots Melted . | . . . . Combat Hostiles . | . . . . Parts Melted . | . . . . Heat Transferred 175 | 150 25 . . Parts Sabotaged . | . . . . Parts Stolen . | . . . . Parts Stripped . | . . . . Power Chain Reactions . | . . . . Alert | -11 -10 -10 -8 ------- Run | Yrd Mat Sub Mat Maximum Alert Level 1 | . 1 . . Low Security (%) 99 | 100 98 . . Level 1 . | . 1 . . Level 2 . | . . . . Level 3 . | . . . . Level 4 . | . . . . Level 5 . | . . . . High Security . | . . . . Max Security . | . . . . Peak Influence 200 | 5 200 . . Initial . | . . . . Average 12 | . 91 . . Influence Increases 422 | 10 412 . . Destroy 0b10 Robot/C 240 | . 240 . . Destroy 0b10 Robot/NC 20 | 10 10 . . Destroy Leader 50 | . 50 . . Successful Hack 9 | . 9 . . Disable Machine 15 | . 15 . . Destroy Structure 13 | . 13 . . Lose Combat Pursuer 75 | . 75 . . Influence Decreases 422 | 10 212 200 . Entered New Map 96 | . . 96 . Time Decay 306 | 10 212 84 . Lost Part 20 | . . 20 . Squads Dispatched 3 | . 3 . . Investigation 1 | . 1 . . Extermination . | . . . . Reinforcement 2 | . 2 . . Assault . | . . . . Garrison . | . . . . Intercept . | . . . . Searches Triggered . | . . . . Construction Impeded . | . . . . Haulers Reinforced . | . . . . Active Scanning Responses . | . . . . Cargo Convoy Interrupts . | . . . . Stealth | -11 -10 -10 -8 --------- Run | Yrd Mat Sub Mat Distress Signals 1 | . 1 . . Communications Jammed . | . . . . Distress Signals . | . . . . Times Spotted 29 | . 25 4 . Peak Tracking Total 6 | . 6 2 . Tactical Retreats 3 | . 3 . . Traps | -11 -10 -10 -8 ------- Run | Yrd Mat Sub Mat Traps Triggered 3 | . 3 . . Indirectly . | . . . . Trap Hack Attempts . | . . . . Triggered . | . . . . Disarmed . | . . . . Reprogrammed . | . . . . Reused . | . . . . Traps Extracted . | . . . . Installed . | . . . . Triggered . | . . . . Machines | -11 -10 -10 -8 ---------- Run | Yrd Mat Sub Mat Machines Disabled 1 | . 1 . . Max in Single Turn 1 | . 1 . . Machines Repaired . | . . . . Machines Dismantled . | . . . . Machines Sabotaged . | . . . . Overloaded Fab Kills . | . . . . Hacking | -11 -10 -10 -8 --------- Run | Yrd Mat Sub Mat Machines Accessed 2 | . 2 . . Terminals 2 | . 2 . . Fabricators . | . . . . Repair Stations . | . . . . Recycling Units . | . . . . Scanalyzers . | . . . . Garrison Access . | . . . . Total Hacks 9 | . 9 . . Successful 5 | . 5 . . Failed 4 | . 4 . . Catastrophic . | . . . . Database Lockouts . | . . . . Manual 6 | . 6 . . Terminals 9 | . 9 . . Fabricators . | . . . . Repair Stations . | . . . . Recycling Units . | . . . . Scanalyzers . | . . . . Garrison Access . | . . . . Terminal Hacks 3 | . 3 . . Terminal Index 1 | . 1 . . Locate Traps 1 | . 1 . . Zone Layout 1 | . 1 . . Fabricator Hacks . | . . . . Repair Station Hacks . | . . . . Recycling Unit Hacks . | . . . . Scanalyzer . | . . . . Garrison Access Hacks . | . . . . Unauthorized Hacks 2 | . 2 . . Terminals 2 | . 2 . . Botnet 2 | . 2 . . Fabricators . | . . . . Repair Stations . | . . . . Recycling Units . | . . . . Scanalyzers . | . . . . Garrison Access . | . . . . Data Cores Recovered . | . . . . Used . | . . . . Hacking Detections 2 | . 2 . . Full Trace Events . | . . . . Feedback Events . | . . . . Feedback Blocked . | . . . . Robot Schematics Acquired . | . . . . Robots Built . | . . . . Authchips . | . . . . Time . | . . . . Total Robot Build Rating . | . . . . Part Schematics Acquired . | . . . . Parts Built . | . . . . Authchips . | . . . . Time . | . . . . Total Part Build Rating . | . . . . Part Studies Acquired . | . . . . Parts Repaired . | . . . . Time . | . . . . Parts Recycled . | . . . . Recycled Matter . | . . . . Retrieved Matter . | . . . . Retrieved Components . | . . . . Parts Scanalyzed . | . . . . Part Schematics Acquired . | . . . . Parts Damaged . | . . . . Bothacking | -11 -10 -10 -8 ------------ Run | Yrd Mat Sub Mat Used RIF Installer . | . . . . Robots Hacked . | . . . . Non-combat . | . . . . Combat . | . . . . Robot Hacks Applied . | . . . . Relay Couplers Released . | . . . . Fabnet Peak Effective % . | . . . . Robots Rewired . | . . . . Allies Hacked . | . . . . Hacks Repelled . | . . . . Allies | -11 -10 -10 -8 -------- Run | Yrd Mat Sub Mat Total Allies . | . . . . Largest Group . | . . . . Highest-Rated Group . | . . . . Highest-Rated Ally . | . . . . Total Orders . | . . . . Ally Attacks . | . . . . Total Damage . | . . . . Kills . | . . . . Allies Corrupted . | . . . . Allies Melted . | . . . . Intel | -11 -10 -10 -8 ------- Run | Yrd Mat Sub Mat Active Infowar (turns) . | . . . . Robot Analysis Total . | . . . . Derelict Logs Recovered . | . . . . Drone Launches . | . . . . Drone Recoveries . | . . . . Exploration | -11 -10 -10 -8 ------------- Run | Yrd Mat Sub Mat Turns Passed 5233 | 4202 673 358 . Spaces Moved 2076 | 1623 265 188 . Core 8 | 2 . 6 . Treads 1995 | 1621 265 109 . Legs 73 | . . 73 . Wheels . | . . . . Hover . | . . . . Flight . | . . . . Fastest Speed 50 | 50 160 160 . Average Speed 161 | 159 160 180 . Slowest Speed 400 | 160 160 400 . Overloaded Moves . | . . . . Propulsion Burnouts . | . . . . Robots Hopped . | . . . . Potential Cave-ins . | . . . . Cave-ins Triggered . | . . . . Exploration Rate (%) 38 | 71 62 20 1 Regions Visited 3 Branch Regions 1 Pre-discovered Areas . | . . . . Known Exits Taken . | . . . . Unknown Exits Taken 3 | 1 1 1 . Scrap Searched . | . . . . Spaces Dug . | . . . . Terrain Destroyed 39 | . 11 28 . Melee . | . . . . Projectile . | . . . . AOE 39 | . 11 28 . Terrain Rammed . | . . . . Walls Destroyed . | . . . . Machines Disabled . | . . . . Actions | -11 -10 -10 -8 --------- Run | Yrd Mat Sub Mat Total 3841 | 3211 428 202 . Wait 1666 | 1566 98 2 . Move 2073 | 1622 264 187 . Hop . | . . . . Pick Up 15 | 7 5 3 . Fast Attach 9 | 6 3 . . Attach 3 | . . 3 . Detach 1 | . 1 . . Swap 6 | . 5 1 . Drop 1 | . . 1 . Fire 66 | 9 52 5 . Melee . | . . . . Ram . | . . . . Kick . | . . . . Crush 1 | 1 . . . Escape Stasis . | . . . . Rewire . | . . . . Trap . | . . . . Miscellaneous . | . . . . Route ------- -11/Scrapyard -10/Materials (discovered 4 exits: [*Mat] / [*Min x2] / [*Sub]) -10/Subcaves (discovered 2 exits: [*Mat x2]) -8/Materials History --------- Turn | Location | Event 12 | -11/Scrapyard | Discovered new exit (range 16) 4203 | -11/Scrapyard | Entered Materials 4203 | -10/Materials | Discovered new exit (range 16) 4204 | -10/Materials | Build established: Mutant 4591 | -10/Materials | Discovered new exit (range 11) 4842 | -10/Materials | Discovered new exit (range 14) 4863 | -10/Materials | Discovered new exit (range 5) 4876 | -10/Materials | Entered Subcaves 4996 | -10/Subcaves | Discovered new exit (range 11) 5091 | -10/Subcaves | Lost 3 parts (1p2n) 5195 | -10/Subcaves | Discovered new exit (range 6) 5198 | -10/Subcaves | Core integrity fell below 50% 5234 | -10/Subcaves | Entered Materials 5234 | -8/Materials | Evolved 4 slots: Propulsion x2, Utility x2 5234 | -8/Materials | Self-destructed Last Messages --------------- 05114_ The unstable cave ceiling collapses. 05119_ Acquired 11 matter. 05121_ Acquired 6 matter. 05124_ AK-HUO(O) collects matter. 05132_ AK-HUO(O) puts together Sub. Machine Gun. 05195_ EXIT=FOUND 05198_ X7-K3X(R) destroyed. 05198_ ON-SR5(R) destroyed. 05201_ U 8MU#F2RA2KJKWM886YYE 05211_ Acquired Scrap Shield Fragment. 05214_ Acquired 36 matter. 05216_ Acquired 38 matter. 05224_ Subatomizers dissect the Sub. Power Source. 05231_ Dropped Ion Engine. 05231_ Acquired Sub. Power Source. 05233_ The unstable cave ceiling collapses. PARAMETERS=PROPULSION+2,UTILITY+2 LOCATION=UNKNOWN GOAL=ESCAPE Map ----- +----------------------------------------------------+ | ???????????????????????????????????????? | | ???????????????????????????????????????? | | ???????????????????????????????????????? | | ???????????????????????????????????????? | | ???????????????????????????????????????? | | ???????????????????????????????????????? | | ???????????????????????????????????????? | | ???????????????????????????????????????? | | ???????????????????????????????????????? | | ???????????????????????????????????????? | | ???????????????????????????????????????? | | ???????????????????????????????????????? | | ???????????????????????????????????????? | | ???????????????????????????????????????? | | ???????????????????????????????????????? | | ???????????????????????????????????????? | | ???????????????????????????????????????? | | ???????????????????????????????????????? | | ???????????????????????????????????????? | | ???????????????????????????????????????? | | ???????????????????????????????????????? | | ???????????????????????????????????????? | | ??????????????## ??????????????????????? | | ??????????????# ########???????????? | | ??????????????# #???????????? | | ??????????????# " @ #???????????? | | ??????????????# #???????????? | | ??????????????# ########???????????? | | ??????????????###??????????????????????? | | ???????????????????????????????????????? | | ???????????????????????????????????????? | | ???????????????????????????????????????? | | | | | | | | | | | | | | | | | | | | | | | | | | | | | | | | | | | | | +----------------------------------------------------+ Best States ------------- Heat Dissipation 35 Energy Generation 10 Energy Capacity 250 Matter Stores 300 Matter Capacity 300 Sight Range 16 Terrain Scan Density 10 Evasion (%) 40 Recoil Reduction 2 Item Schematics ----------------- None Robot Schematics ------------------ None Fabricated ------------ Nothing Repaired ---------- Nothing Studied --------- None Alien Tech Used ----------------- None Achievements -------------- None Challenges ------------ None Game ------ Seed EtherialTrapWand Manual? 0 Play Time 00:14:16 Cumulative 72.8 hours Start 2026.06.25 @ 06:03:45 End 2026.06.25 @ 06:33:46 Sessions 1 Manual Loads 0 Difficulty Rogue Special Mode None Game No. 87 Rogue 80 Adventurer 0 Explorer 7 Win Type - Total 1 Types 1/0/0/0/0/0/0/0/0/0 Lore% 20 Gallery% 30 Achievement% 26 Wizard Run 0 Options --------- Layout 1 ASCII 0 Keyboard 0 Movement Numpad Keybinds 0 Fullscreen 2 Font 32/SmallcapsGlow Map View 50x35 Zoom Use 0% Tactical HUD 1 Map Filters NONE Filters NONE Steam 1 RUN: b6fbcb2b-4c12-4926-872a-0991e8e45c81